bitfinex-derivatives/quotes_ETHF0:USTF0_20241017
["timestamp","ask_amount","ask_price","bid_price","bid_amount"]
[1729125207639,0.3812,2623.5,2623.4,0.38119]
[1729125207848,0.4729,2623.6,2623.3,0.38121]
[1729125207849,0.38121,2623.4,2623.3,0.38121]
[1729125208137,0.38121,2623.4,2623.2,3.1633]
[1729125208138,0.38121,2623.3,2623.2,0.86453]
[1729125208335,1.42586,2623.6,2623.2,2.68]
[1729125208336,0.4729,2623.6,2623.2,2.68]
[1729125208641,0.38121,2623.3,2623.2,3.06122]
[1729125210137,1.42584,2623.6,2623.2,3.06122]
[1729125210138,0.38121,2623.4,2623.3,0.38121]
[1729125211039,0.3812,2623.5,2623.4,0.38119]
[1729125211441,0.38119,2623.5,2623.4,3.06118]
[1729125212043,0.4729,2623.6,2623.5,0.38118]
[1729125213040,0.4729,2623.6,2623.5,0.84928]
[1729125213441,0.85407,2623.6,2623.5,0.84928]
[1729125215341,0.85407,2623.6,2623.5,0.38118]
[1729125219645,0.4839,2623.8,2623.7,0.38116]
[1729125220245,0.4839,2623.8,2623.7,3.06116]
[1729125220440,0.4448,2624.0,2623.7,9.699]
[1729125220768,0.3811,2624.2,2624.1,0.38109]
[1729125221754,0.8997,2624.3,2624.2,0.38108]
[1729125221755,1.28078,2624.3,2624.2,0.38108]
[1729125222347,0.38106,2624.4,2624.3,0.38106]
[1729125222649,0.38106,2624.4,2624.3,0.82996]
[1729125223249,0.38106,2624.4,2624.3,0.4489]
[1729125223649,0.82585,2624.5,2624.4,0.38105]
[1729125224652,0.4448,2624.5,2624.4,0.38105]
[1729125224843,0.38103,2624.6,2624.4,2.68]
[1729125225044,0.38103,2624.6,2624.5,0.38104]
[1729125225246,0.8075,2624.9,2624.8,0.381]
[1729125225446,3.2078,2625.0,2624.8,2.68]
[1729125225648,3.2078,2625.0,2624.9,0.38098]
[1729125225649,3.58877,2625.0,2624.9,0.38098]
[1729125225849,3.2078,2625.0,2624.9,0.38098]
[1729125226254,3.2078,2625.0,2624.9,0.80588]
[1729125226752,3.58877,2625.0,2624.9,0.80588]
[1729125226948,3.2078,2625.0,2624.9,0.80588]
[1729125227552,3.2078,2625.0,2624.9,1.22728]
[1729125227748,3.2078,2625.0,2624.9,0.8463]
[1729125227952,3.2078,2625.0,2624.9,1.22728]
[1729125229363,0.8802,2625.4,2624.9,1.22728]
[1729125229364,3.2078,2625.3,2625.2,0.38094]
[1729125229558,3.2078,2625.3,2625.2,3.06094]
[1729125230257,3.2078,2625.3,2625.2,0.38094]
[1729125235664,3.58872,2625.3,2625.2,0.38094]
[1729125235860,3.6277,2625.3,2625.1,0.38095]
[1729125236067,0.38094,2625.2,2625.1,0.38095]
[1729125236255,0.83834,2625.2,2625.1,0.38095]
[1729125236459,0.4574,2625.2,2624.9,1.2716]
[1729125236657,0.38096,2625.1,2625.0,0.38096]
[1729125237861,0.38097,2625.1,2625.0,0.38096]
[1729125238064,1.26545,2625.2,2625.1,0.38095]
[1729125238265,0.38096,2625.1,2625.0,0.38096]
[1729125240365,0.38095,2625.1,2624.8,0.38099]
[1729125240569,0.38099,2624.9,2624.8,0.38099]
[1729125240861,0.38102,2624.6,2624.5,3.2078]
[1729125241059,2.68,2624.9,2624.0,4.0042]
[1729125241060,4.2618,2624.8,2624.0,4.0042]
[1729125241360,0.38109,2624.2,2624.1,0.38108]
[1729125241562,0.38114,2623.9,2623.7,0.38114]
[1729125242366,0.38113,2623.9,2623.8,0.38114]
[1729125242667,0.38114,2623.9,2623.7,0.38115]
[1729125242966,0.38116,2623.7,2623.5,3.58898]
[1729125243156,0.4332,2623.9,2623.5,3.2078]
[1729125243358,0.38116,2623.7,2623.5,3.58898]
[1729125244270,0.4332,2623.9,2623.5,3.2078]
[1729125244271,0.38117,2623.6,2623.5,3.2078]
[1729125245064,0.38117,2623.6,2623.5,3.58898]
[1729125245261,3.641,2623.9,2623.5,3.2078]
[1729125245865,0.38114,2623.8,2623.7,0.38115]
[1729125246065,0.38114,2623.8,2623.5,3.2078]
[1729125246066,0.4332,2623.9,2623.5,3.2078]
[1729125246260,3.641,2623.9,2623.5,3.2078]
[1729125246461,4.02213,2623.9,2623.7,0.38115]
[1729125246669,0.38115,2623.8,2623.6,0.38117]
[1729125246866,4.02213,2623.9,2623.8,0.38114]
[1729125247271,4.02213,2623.9,2623.7,0.38115]
[1729125247667,3.641,2623.9,2623.8,0.38114]
[1729125247862,3.641,2623.9,2623.5,3.2078]
[1729125248163,4.02214,2623.9,2623.8,0.38114]
[1729125248372,0.38114,2623.8,2623.7,0.38115]
[1729125248570,4.02214,2623.9,2623.7,0.38115]
[1729125248768,0.38114,2623.8,2623.7,0.38115]
[1729125249070,0.81434,2623.9,2623.7,0.38115]
[1729125249274,0.4332,2623.9,2623.8,0.38114]
[1729125249465,0.81434,2623.9,2623.7,0.38115]
[1729125249665,0.4332,2623.9,2623.8,0.38114]
[1729125250266,0.4522,2624.1,2623.7,2.68]
[1729125250468,3.39962979,2624.6,2624.4,0.38105]
[1729125250469,0.81084,2624.5,2624.4,0.38105]
[1729125250785,0.4298,2624.5,2624.4,0.38105]
[1729125251365,0.81084,2624.5,2624.4,0.38105]
[1729125251566,0.4298,2624.5,2624.4,0.38105]
[1729125251767,0.81084,2624.5,2624.4,0.38105]
[1729125252775,3.2078,2624.6,2624.5,0.38104]
[1729125253468,3.58882,2624.6,2624.5,0.38104]
[1729125254174,3.2078,2624.6,2624.5,0.38104]
[1729125254568,3.58882,2624.6,2624.5,0.38104]
[1729125254869,3.2078,2624.6,2624.5,0.38104]
[1729125256076,0.38108,2624.3,2624.1,0.38108]
[1729125256261,0.38107,2624.3,2624.2,0.38107]
[1729125257275,0.38107,2624.3,2624.1,0.3811]
[1729125257473,0.38111,2624.1,2623.9,0.38111]
[1729125257775,0.38115,2623.8,2623.7,0.38115]
[1729125257964,0.38114,2623.9,2623.8,0.38114]
[1729125258877,3.6312,2624.0,2623.8,0.38114]
[1729125259081,0.38113,2623.9,2623.8,0.38114]
[1729125260974,3.6312,2624.0,2623.5,6.3116]
[1729125261180,0.38114,2623.9,2623.8,0.38114]
[1729125261378,4.01232,2624.0,2623.9,0.38113]
[1729125261583,0.4234,2624.0,2623.9,0.38113]
[1729125261881,4.2346,2624.0,2623.9,0.38113]
[1729125262070,4.61571,2624.0,2623.9,0.38113]
[1729125262272,0.38111,2624.0,2623.9,0.38113]
[1729125262572,0.423,2624.1,2623.7,2.68]
[1729125262770,0.82958,2624.2,2624.1,0.3811]
[1729125263176,4.63998,2624.2,2624.1,0.3811]
[1729125265379,4.2589,2624.2,2624.1,0.3811]
[1729125266185,4.63998,2624.2,2624.1,0.3811]
[1729125266485,4.63998,2624.2,2623.9,0.4442]
[1729125266486,4.2589,2624.2,2623.9,0.4442]
[1729125266781,0.8296,2624.2,2624.1,0.3811]
[1729125267282,4.64,2624.2,2624.1,0.3811]
[1729125268684,4.2589,2624.2,2624.1,0.3811]
[1729125268891,0.82958,2624.2,2624.1,0.3811]
[1729125269272,7.5468,2624.6,2623.9,0.4442]
[1729125269486,7.5468,2624.6,2624.2,0.38108]
[1729125269487,0.38108,2624.3,2624.2,0.38108]
[1729125269692,0.38109,2624.2,2624.1,0.38109]
[1729125270774,0.4464,2624.5,2624.0,0.4463]
[1729125270974,0.38108,2624.3,2624.2,0.38108]
[1729125271178,0.4464,2624.5,2624.0,0.4463]
[1729125271377,0.38106,2624.4,2624.3,0.38105]
[1729125272677,0.4464,2624.5,2624.4,0.38105]
[1729125272883,0.82744,2624.5,2624.4,0.38105]
[1729125273072,4.63784,2624.5,2624.4,0.38105]
[1729125273383,4.63785,2624.5,2624.4,0.38105]
[1729125273590,0.38106,2624.4,2624.3,0.38106]
[1729125274087,4.19146,2624.4,2624.3,0.38106]
[1729125274483,3.8104,2624.4,2624.3,0.38106]
[1729125274685,4.01483,2624.6,2624.5,0.38104]
[1729125274987,3.6338,2624.6,2624.5,0.38104]
[1729125275187,7.4442,2624.6,2624.5,0.38104]
[1729125275577,7.82522,2624.6,2624.5,0.38104]
[1729125275887,7.82522,2624.6,2624.4,0.38104]
[1729125275888,0.38104,2624.5,2624.4,0.38104]
[1729125276083,0.38105,2624.5,2624.4,0.38105]
[1729125276587,4.01483,2624.6,2624.5,0.38104]
[1729125276983,3.6338,2624.6,2624.5,0.38104]
[1729125277286,0.426,2624.6,2624.5,0.38104]
[1729125277979,0.80702,2624.6,2624.5,0.38104]
[1729125278791,0.426,2624.6,2624.5,0.38104]
[1729125279380,0.80702,2624.6,2624.5,0.24988191]
[1729125279576,0.38105,2624.5,2624.4,0.38105]
[1729125282687,0.38104,2624.5,2624.2,0.38108]
[1729125282880,0.38104,2624.5,2624.4,0.38105]
[1729125284091,0.38104,2624.5,2624.1,1.40744]
[1729125284988,0.38104,2624.5,2624.4,0.38105]
[1729125288704,4.01483,2624.6,2624.5,0.38104]
[1729125289200,2.68,2624.9,2624.3,0.95267]
[1729125289201,3.2078,2624.9,2624.3,0.95267]
[1729125289393,3.2078,2624.9,2624.4,1.13906212]
[1729125289695,0.381,2624.8,2624.7,0.381]
[1729125289890,3.2078,2624.9,2624.8,0.381]
[1729125289891,3.58879,2624.9,2624.8,0.381]
[1729125291289,3.2078,2624.9,2624.7,0.381]
[1729125291490,3.2078,2624.9,2624.6,0.4207]
[1729125291691,3.58879,2624.9,2624.8,0.381]
[1729125292195,3.2078,2624.9,2624.8,0.381]
[1729125292496,3.58878,2624.9,2624.8,0.381]
[1729125293195,0.38098,2624.9,2624.8,0.381]
[1729125295091,3.2078,2625.0,2624.6,0.4207]
[1729125295286,3.2078,2624.7,2624.6,0.4207]
[1729125295495,3.2078,2624.7,2624.6,0.80172]
[1729125295902,3.2078,2624.7,2624.6,0.53835059]
[1729125297394,3.2078,2624.7,2624.4,0.24438051]
[1729125297597,3.2078,2624.7,2624.6,0.38102]
[1729125298300,0.381,2624.8,2624.7,0.38101]
[1729125298509,3.5888,2624.8,2624.7,0.38101]
[1729125298898,3.5888,2624.8,2624.7,3.06101]
[1729125298899,3.2078,2624.8,2624.7,3.06101]
[1729125299093,1.3415,2625.1,2625.0,0.38097]
[1729125299094,4.5493,2625.1,2625.0,0.38097]
[1729125299402,3.2078,2625.1,2625.0,0.38097]
[1729125301494,3.2078,2625.1,2624.4,6.84042]
[1729125301694,0.381,2624.8,2624.7,0.381]
[1729125301896,0.4501,2625.0,2624.5,3.1166]
[1729125302103,0.83107,2625.0,2624.9,0.38098]
[1729125302902,0.4501,2625.0,2624.5,3.1166]
[1729125303108,0.381,2624.9,2624.8,0.38099]
[1729125303298,0.8445,2624.9,2624.5,0.4366]
[1729125303607,0.38103,2624.6,2624.5,0.38103]
[1729125303996,0.38102,2624.7,2624.6,0.38102]
[1729125304603,0.38101,2624.8,2624.7,0.381]
[1729125305905,1.22549,2624.9,2624.8,0.381]
[1729125306098,0.8445,2624.9,2624.5,2.68]
[1729125306302,0.8445,2624.9,2624.7,0.381]
[1729125306303,0.381,2624.8,2624.7,0.381]
[1729125308314,0.38102,2624.7,2624.6,0.38101]
[1729125308505,0.38101,2624.8,2624.7,0.381]
[1729125310004,0.38102,2624.7,2624.6,0.38102]
[1729125310614,0.38101,2624.7,2624.4,0.8972]
[1729125310909,0.8445,2624.9,2624.4,0.8972]
[1729125311099,0.38101,2624.8,2624.7,0.381]
[1729125311512,0.8445,2624.9,2624.4,0.8972]
[1729125311513,0.38103,2624.7,2624.6,0.38102]
[1729125311812,4.0523,2624.9,2624.2,3.2078]
[1729125312012,0.38107,2624.3,2624.2,3.2078]
[1729125312205,0.38107,2624.3,2624.2,3.58888]
[1729125312703,0.38107,2624.3,2624.2,2.50523829]
[1729125313401,0.38106,2624.4,2624.3,0.38105]
[1729125313604,0.38107,2624.3,2624.2,2.50523829]
[1729125314203,0.38107,2624.3,2624.2,2.12415829]
[1729125314398,0.38107,2624.3,2624.2,2.50523829]
[1729125314706,7.0182,2624.3,2623.7,2.68]
[1729125314910,3.2078,2624.0,2623.3,7.85603805]
[1729125315108,3.2078,2624.0,2623.7,0.38115]
[1729125315109,0.38115,2623.8,2623.7,0.38115]
[1729125315915,3.2078,2624.0,2623.3,6.871]
[1729125316208,1.64199,2624.2,2624.1,0.3811]
[1729125317201,4.84979,2624.2,2624.1,0.3811]
[1729125317403,4.4687,2624.2,2623.8,1.2775]
[1729125317808,0.38111,2624.1,2624.0,0.38111]
[1729125319112,0.8402,2624.2,2624.0,0.38111]
[1729125319414,3.2078,2624.5,2623.9,2.68]
[1729125319612,4.473,2624.5,2624.4,0.38105]
[1729125320117,4.85404,2624.5,2624.4,0.38105]
[1729125320516,4.473,2624.5,2624.4,0.38105]
[1729125320709,4.473,2624.5,2624.2,0.4195]
[1729125320910,4.473,2624.5,2624.4,0.38105]
[1729125320911,4.85405,2624.5,2624.4,0.38105]
[1729125322318,4.85405,2624.5,2624.3,0.38106]
[1729125322319,4.473,2624.5,2624.3,0.38106]
[1729125322520,4.85405,2624.5,2624.4,0.38105]
[1729125322820,4.85405,2624.5,2624.3,0.38106]
[1729125322821,0.38105,2624.4,2624.3,0.38106]
[1729125323120,0.4091,2624.4,2624.3,0.38106]
[1729125323916,1.33375,2624.3,2623.7,0.38114]
[1729125324117,3.2078,2624.0,2623.6,0.38116]
[1729125324418,3.2078,2624.0,2623.5,0.38118]
[1729125324419,0.38117,2623.6,2623.5,0.38118]
[1729125325015,0.38116,2623.7,2623.6,0.38117]
[1729125330125,1.2759,2623.9,2623.4,2.68]
[1729125330325,0.38116,2623.7,2623.6,0.38116]
[1729125331619,4.4837,2623.9,2623.5,0.4293]
[1729125331620,0.38117,2623.6,2623.5,0.81048]
[1729125331814,7.1637,2623.9,2623.2,0.8769]
[1729125332020,0.38121,2623.3,2623.2,0.38122]
[1729125332321,0.38122,2623.3,2623.2,0.38121]
[1729125332619,1.22251,2623.4,2623.3,0.38121]
[1729125333020,0.4084,2623.4,2623.3,0.38121]
[1729125334025,0.38116,2623.7,2623.6,0.38117]
[1729125334224,3.2078,2623.9,2623.5,0.38117]
[1729125334225,4.4811,2623.9,2623.5,0.38117]
[1729125334431,0.38117,2623.7,2623.6,0.38117]
[1729125334622,0.38116,2623.7,2623.6,0.38116]
[1729125334819,0.38115,2623.8,2623.7,0.38115]
[1729125335125,0.38116,2623.7,2623.6,0.38116]
[1729125335522,0.38115,2623.8,2623.7,0.38114]
[1729125335726,0.38116,2623.7,2623.6,0.38116]
[1729125336720,4.4811,2623.9,2623.5,0.4223]
[1729125336927,4.86223,2623.9,2623.8,0.38114]
[1729125337431,1.65443,2623.9,2623.8,0.38114]
[1729125339138,0.8453,2623.9,2623.8,0.38114]
[1729125339330,0.4018,2624.2,2623.6,3.63291]
[1729125339531,1.2553,2624.2,2623.7,0.4049]
[1729125339928,1.2553,2624.2,2623.8,2.68]
[1729125340130,1.2553,2624.2,2623.9,0.3974]
[1729125340324,1.2553,2624.2,2624.1,0.3811]
[1729125340842,1.63639,2624.2,2624.1,0.3811]
[1729125341733,1.63638,2624.2,2624.1,0.3811]
[1729125346342,1.2553,2624.2,2624.1,0.3811]
[1729125346536,3.2078,2624.4,2624.3,0.38107]
[1729125346839,0.38105,2624.5,2624.4,0.38105]
[1729125347236,1.63253,2624.6,2624.5,0.38104]
[1729125348433,1.2515,2624.6,2624.5,0.38104]
[1729125348639,0.8273,2624.6,2624.5,0.38104]
[1729125353144,1.20832,2624.6,2624.5,0.38104]
[1729125353540,0.8273,2624.6,2624.5,0.38104]
[1729125354443,3.5888,2624.8,2624.4,0.4243]
[1729125354646,3.5888,2624.8,2624.7,0.38101]
[1729125355548,3.2078,2624.8,2624.4,0.4243]
[1729125355750,0.38102,2624.7,2624.6,0.38101]
[1729125359546,0.38104,2624.6,2624.5,0.38103]
[1729125359740,3.2078,2624.8,2624.4,0.4243]
[1729125359954,3.2078,2624.8,2624.6,0.38101]
[1729125359955,0.38102,2624.7,2624.6,0.38101]
[1729125360749,0.38109,2624.2,2624.1,0.38108]
[1729125361858,0.38109,2624.2,2623.9,3.2078]
[1729125361859,0.38108,2624.3,2624.2,0.38107]
[1729125362053,0.401,2624.4,2623.9,5.8878]
[1729125362349,0.38109,2624.2,2624.1,0.38109]
[1729125363257,0.38108,2624.3,2624.2,0.38107]
[1729125363664,0.401,2624.4,2624.2,0.38107]
[1729125363862,0.401,2624.4,2623.9,3.2078]
[1729125364064,0.3811,2624.1,2624.0,0.38109]
[1729125364262,0.38109,2624.2,2624.1,0.38108]
[1729125365256,0.78207,2624.4,2624.3,0.38107]
[1729125365567,0.78207,2624.4,2624.3,0.25111751]
[1729125365761,0.401,2624.4,2624.0,0.3894]
[1729125365968,0.38109,2624.3,2624.2,0.38107]
[1729125366669,0.95268,2624.3,2623.5,2.68]
[1729125366965,0.38115,2623.8,2623.7,0.38114]
[1729125368369,10.65186,2623.8,2623.2,3.2078]
[1729125368576,0.38119,2623.5,2623.4,0.38119]
[1729125368780,0.38121,2623.3,2623.2,3.58902]
[1729125368969,0.8328,2623.4,2623.3,0.38121]
[1729125369364,1.2395,2623.4,2623.3,0.38121]
[1729125371469,3.2078,2623.8,2623.3,3.812]
[1729125371673,0.8197,2623.7,2623.6,0.38116]
[1729125372462,1.20086,2623.7,2623.6,0.38116]
[1729125372775,0.8197,2623.7,2623.6,0.38116]
[1729125374275,1.20086,2623.7,2623.6,0.38116]
[1729125375664,0.8197,2623.7,2623.6,0.38116]
[1729125376376,1.20086,2623.7,2623.6,0.38116]
[1729125377275,0.8197,2623.7,2623.6,0.38116]
[1729125379167,0.8197,2623.7,2623.2,4.16086]
[1729125379168,0.38117,2623.6,2623.5,0.38117]
[1729125379374,1.20086,2623.7,2623.6,0.38117]
[1729125380281,0.8197,2623.7,2623.6,0.38117]
[1729125380682,3.2078,2623.8,2623.4,2.68]
[1729125380881,3.2078,2623.8,2623.7,0.38116]
[1729125381180,0.3811,2624.1,2623.7,0.38116]
[1729125381181,3.2078,2624.1,2624.0,0.38111]
[1729125381474,0.8338,2624.4,2624.3,0.38107]
[1729125381671,1.21485,2624.4,2624.3,0.38107]
[1729125382077,0.38108,2624.3,2624.2,0.38108]
[1729125382283,3.2078,2624.6,2624.1,2.68]
[1729125382478,3.2078,2624.6,2624.5,0.38104]
[1729125383772,0.7895,2624.8,2624.7,0.38101]
[1729125384280,0.4085,2624.8,2624.7,0.38101]
[1729125384983,4.0148,2624.9,2624.8,0.381]
[1729125387084,4.0148,2624.9,2624.8,0.25216938]
[1729125387882,3.2078,2624.9,2624.8,12.74176938]
[1729125388079,3.2078,2625.2,2625.1,0.38095]
[1729125388591,3.2078,2625.2,2625.1,4.19055]
[1729125389087,3.2078,2625.2,2625.1,0.38095]
[1729125389491,3.2078,2625.2,2625.1,4.19055]
[1729125389990,3.2078,2625.5,2625.1,4.19055]
[1729125390202,1.2454,2625.6,2625.5,0.38089]
[1729125390203,0.8283,2625.6,2625.5,0.38089]
[1729125390405,1.20918,2625.6,2625.4,0.3809]
[1729125390692,0.3809,2625.5,2625.3,0.38092]
[1729125391088,0.38091,2625.4,2624.9,1.2248]
[1729125391292,3.2078,2625.5,2624.9,1.2248]
[1729125391690,0.38093,2625.3,2624.9,1.2248]
[1729125391891,0.38093,2625.3,2625.1,0.38094]
[1729125392394,0.38095,2625.1,2625.0,0.38096]
[1729125392889,0.38095,2625.1,2624.7,3.2078]
[1729125392890,0.38096,2625.1,2624.9,0.38097]
[1729125393193,0.3929,2625.0,2624.9,0.38098]
[1729125394094,0.77388,2625.0,2624.8,0.38098]
[1729125394284,0.77387,2625.0,2624.7,3.2078]
[1729125394590,0.77387,2625.0,2624.9,0.38098]
[1729125395998,0.77387,2625.0,2624.7,3.2078]
[1729125395999,0.3929,2625.0,2624.7,3.2078]
[1729125396494,0.38099,2624.9,2624.8,0.38099]
[1729125396690,0.77388,2625.0,2624.9,0.38098]
[1729125397098,0.77387,2625.0,2624.9,0.38098]
[1729125397482,0.38099,2624.9,2624.8,0.38099]
[1729125397890,0.38098,2624.9,2624.8,0.38099]
[1729125399696,0.38098,2624.9,2624.7,3.2078]
[1729125399697,0.77388,2625.0,2624.9,0.38098]
[1729125400994,0.38099,2624.9,2624.8,0.38099]
[1729125401386,0.77388,2625.0,2624.9,0.38098]
[1729125402194,0.38099,2624.9,2624.8,0.38098]
[1729125402794,0.77388,2625.0,2624.9,0.38098]
[1729125405302,0.3929,2625.0,2624.9,0.38098]
[1729125405495,0.77387,2625.0,2624.9,0.38098]
[1729125405692,0.3929,2625.0,2624.9,0.38098]
[1729125405996,0.77387,2625.0,2624.9,0.38098]
[1729125406695,0.3929,2625.0,2624.9,0.38098]
[1729125407000,0.77387,2625.0,2624.9,0.38098]
[1729125407301,0.3929,2625.0,2624.9,0.38098]
[1729125407597,0.77387,2625.0,2624.9,0.38098]
[1729125407792,0.3929,2625.0,2624.9,0.38098]
[1729125408000,0.77387,2625.0,2624.9,0.38098]
[1729125409300,0.3929,2625.0,2624.9,0.38098]
[1729125410400,0.77387,2625.0,2624.9,0.38098]
[1729125410704,0.3929,2625.0,2624.9,0.38098]
[1729125410899,0.77387,2625.0,2624.9,0.38098]
[1729125414411,0.3929,2625.0,2624.9,0.38098]
[1729125414702,0.3929,2625.0,2624.8,2.68]
[1729125414703,0.4299,2625.1,2625.0,0.38097]
[1729125415204,0.4233,2625.2,2624.9,0.7938]
[1729125415410,0.8129,2625.4,2625.0,2.68]
[1729125415607,0.8129,2625.4,2625.3,0.38092]
[1729125420206,0.8129,2625.4,2624.9,0.7938]
[1729125420406,0.3997,2625.3,2625.1,2.68]
[1729125420712,0.3997,2625.3,2625.2,0.38094]
[1729125420904,0.3997,2625.3,2624.9,0.7938]
[1729125421206,0.3997,2625.3,2624.7,3.2078]
[1729125421207,0.95235,2625.2,2624.7,3.2078]
[1729125421412,0.3997,2625.3,2624.7,3.2078]
[1729125421604,0.38094,2625.2,2625.1,0.38095]
[1729125422298,0.38094,2625.2,2624.8,1.2178]
[1729125422299,0.38096,2625.1,2625.0,0.38096]
[1729125422706,0.3997,2625.3,2624.8,1.2178]
[1729125423215,0.3997,2625.3,2625.0,0.38096]
[1729125423504,0.38096,2625.1,2625.0,0.38096]
[1729125424706,0.38095,2625.2,2625.1,0.38094]
[1729125425705,0.38095,2625.2,2624.8,1.2178]
[1729125425911,0.38096,2625.1,2625.0,0.38095]
[1729125426512,0.3997,2625.3,2625.2,0.38094]
[1729125426513,0.78064,2625.3,2625.2,0.38094]
[1729125427314,0.3997,2625.3,2625.2,0.38094]
[1729125427510,0.78062,2625.3,2625.2,0.38094]
[1729125427711,0.3997,2625.3,2625.2,0.38094]
[1729125428408,0.78062,2625.3,2625.2,0.38094]
[1729125428920,0.3997,2625.3,2625.2,0.38094]
[1729125429912,0.78062,2625.3,2625.2,0.38094]
[1729125430112,0.3997,2625.3,2625.2,0.38094]
[1729125431012,0.78062,2625.3,2625.2,0.38094]
[1729125431208,0.3997,2625.3,2625.2,0.38094]
[1729125432314,0.3997,2625.3,2624.9,2.34507781]
[1729125432520,0.3997,2625.3,2625.2,0.38094]
[1729125433819,0.3997,2625.3,2625.0,2.68]
[1729125434113,0.78064,2625.3,2625.2,0.38094]
[1729125435215,0.8129,2625.4,2625.0,2.68]
[1729125435518,1.19381,2625.4,2625.3,0.38092]
[1729125436227,0.8129,2625.4,2625.3,0.38092]
[1729125436518,1.19381,2625.4,2625.3,0.38092]
[1729125436715,0.8129,2625.4,2625.3,0.38092]
[1729125437919,1.19381,2625.4,2625.3,0.38092]
[1729125438623,1.19381,2625.4,2625.2,0.8259]
[1729125438822,1.19381,2625.4,2625.3,0.38092]
[1729125439613,0.8129,2625.4,2625.3,0.38092]
[1729125439813,1.19381,2625.4,2625.3,1.62092]
[1729125443721,0.38094,2625.3,2625.2,0.38093]
[1729125443928,0.38095,2625.2,2625.1,0.38094]
[1729125444223,0.38095,2625.2,2625.1,1.62094]
[1729125444829,0.38093,2625.3,2625.2,0.38092]
[1729125445017,0.38093,2625.3,2625.2,1.62092]
[1729125445629,0.38093,2625.3,2625.2,1.62094]
[1729125446330,0.38097,2625.1,2625.0,0.38095]
[1729125446628,0.38097,2625.1,2624.7,1.62099]
[1729125446629,0.381,2624.8,2624.7,1.62099]
[1729125446919,4.16012,2625.3,2624.8,0.38098]
[1729125446920,0.38099,2624.9,2624.8,0.38098]
[1729125447129,4.40257,2625.0,2624.9,0.38098]
[1729125447424,4.40257,2625.0,2624.9,1.62098]
[1729125448024,4.40257,2625.0,2624.9,1.24]
[1729125448217,4.0216,2625.0,2624.9,1.24]
[1729125448422,4.40257,2625.0,2624.9,1.24]
[1729125448725,5.64257,2625.0,2624.9,1.24]
[1729125448925,5.64257,2625.0,2624.9,1.62098]
[1729125449731,4.40257,2625.0,2624.9,1.62098]
[1729125449929,1.19477,2625.0,2624.9,1.62098]
[1729125450127,3.2078,2625.3,2624.9,1.24]
[1729125450332,0.38095,2625.1,2625.0,1.24]
[1729125450724,0.38095,2625.1,2625.0,1.62097]
[1729125451324,1.20415,2625.2,2625.1,0.38095]
[1729125451528,1.20415,2625.2,2625.1,1.62095]
[1729125452030,0.38095,2625.1,2625.0,1.62096]
[1729125452623,0.38095,2625.1,2625.0,1.24]
[1729125453130,0.38095,2625.1,2625.0,1.62097]
[1729125453834,0.8232,2625.2,2625.0,1.24]
[1729125454125,0.8232,2625.2,2625.1,1.62095]
[1729125454126,0.4114,2625.2,2625.1,1.62095]
[1729125454634,0.3959,2625.4,2625.3,0.38092]
[1729125454933,0.3959,2625.4,2625.3,1.62092]
[1729125455833,0.77681,2625.4,2625.3,1.62092]
[1729125456128,0.3959,2625.4,2625.3,1.62092]
[1729125456320,0.77681,2625.4,2625.3,1.62092]
[1729125457928,0.77681,2625.4,2625.2,0.3922]
[1729125458128,0.77681,2625.4,2625.3,1.24]
[1729125458427,0.77681,2625.4,2625.3,1.62092]
[1729125458929,0.3959,2625.4,2624.9,0.4299]
[1729125459128,4.4478,2625.3,2624.9,0.4299]
[1729125459424,4.4478,2625.3,2625.0,1.24]
[1729125459733,0.80774,2625.2,2625.1,0.38094]
[1729125460030,0.80774,2625.2,2625.0,0.38095]
[1729125460031,0.38096,2625.1,2625.0,0.38095]
[1729125460228,0.38098,2625.0,2624.9,0.38097]
[1729125461026,0.38098,2625.0,2624.9,1.62097]
[1729125461824,1.6467,2625.1,2624.9,1.24]
[1729125462129,0.38097,2625.0,2624.9,1.62097]
[1729125462526,0.38097,2625.0,2624.9,0.38097]
[1729125462721,0.38097,2625.0,2624.9,1.62097]
[1729125463536,0.4067,2625.1,2625.0,0.38097]
[1729125463744,5.50163563,2626.5,2625.0,6.2896]
[1729125463925,0.8123,2626.1,2626.0,1.24]
[1729125464130,1.19311,2626.1,2626.0,1.24]
[1729125464332,0.38082,2626.0,2625.9,1.62084]
[1729125464933,4.18882,2626.0,2625.9,1.24]
[1729125465829,3.808,2626.0,2625.8,0.38084]
[1729125466031,0.38084,2625.9,2625.8,0.38084]
[1729125466231,0.8123,2626.1,2626.0,0.38082]
[1729125467439,1.19311,2626.1,2626.0,0.38082]
[1729125467828,2.5612,2626.1,2626.0,3.06082]
[1729125468034,3.2078,2626.7,2626.6,0.38073]
[1729125468234,3.2078,2626.7,2626.6,3.06073]
[1729125470336,3.2078,2626.7,2626.4,2.68]
[1729125470837,3.58853,2626.7,2626.5,0.38074]
[1729125471538,3.2078,2626.7,2626.3,0.4253]
[1729125471735,0.38075,2626.5,2626.4,0.38076]
[1729125471940,0.38075,2626.5,2626.3,0.80607]
[1729125472148,0.38075,2626.5,2626.4,0.38076]
[1729125472638,0.38075,2626.5,2626.3,0.80606]
[1729125474339,0.38076,2626.4,2626.3,0.80606]